[Event "Titled Tuesday Blitz April 25 Early 2023"]
[White "Naroditsky, Daniel"]
[Black "Postnikov, Daniil"]
[WhiteFideId "2026961"]
[BlackFideId "4166329"]
[WhiteElo "2633"]
[BlackElo "2261"]
[Result "1-0"]
[Round "01"]
[TimeControl "180+2"]
[Date "2023.04.25"]
[WhiteClock "0:00:10"]
[BlackClock "0:00:12"]

1. d4 {[%clk 0:02:59]}  f5 {[%clk 0:03:00]} 2. Bf4 {[%clk 0:02:58]}  Nf6 {[%clk 0:02:59]} 3. e3 {[%clk 0:02:51]}  d6 {[%clk 0:02:58]} 4. Nc3 {[%clk 0:02:50]}  g6 {[%clk 0:02:59]} 5. h4 {[%clk 0:02:50]}  h6 {[%clk 0:02:55]} 6. Qf3 {[%clk 0:02:50]}  Bg7 {[%clk 0:02:54]} 7. Qg3 {[%clk 0:02:50]}  Kf7 {[%clk 0:02:49]} 8. Bc4+ {[%clk 0:02:50]}  e6 {[%clk 0:02:46]} 9. Nf3 {[%clk 0:02:51]}  Qe7 {[%clk 0:02:43]} 10. O-O-O {[%clk 0:02:28]}  Nh5 {[%clk 0:02:35]} 11. Qh2 {[%clk 0:02:26]}  Nxf4 {[%clk 0:02:28]} 12. Qxf4 {[%clk 0:02:08]}  Rf8 {[%clk 0:02:23]} 13. h5 {[%clk 0:02:06]}  g5 {[%clk 0:02:05]} 14. Qxf5+ {[%clk 0:02:06]}  Qf6 {[%clk 0:02:05]} 15. Qd3 {[%clk 0:01:43]}  Ke7 {[%clk 0:01:59]} 16. e4 {[%clk 0:01:35]}  Qf7 {[%clk 0:01:53]} 17. Kb1 {[%clk 0:01:34]}  Nd7 {[%clk 0:01:52]} 18. Bb3 {[%clk 0:01:23]}  a5 {[%clk 0:01:48]} 19. a4 {[%clk 0:01:21]}  Kd8 {[%clk 0:01:45]} 20. Nb5 {[%clk 0:01:13]}  Qe7 {[%clk 0:01:40]} 21. Qe3 {[%clk 0:01:06]}  c6 {[%clk 0:01:38]} 22. Nc3 {[%clk 0:01:06]}  Kc7 {[%clk 0:01:39]} 23. Nd2 {[%clk 0:01:01]}  Qf6 {[%clk 0:01:35]} 24. Nf3 {[%clk 0:00:52]}  Qf4 {[%clk 0:01:35]} 25. Qd3 {[%clk 0:00:49]}  Nf6 {[%clk 0:01:24]} 26. e5 {[%clk 0:00:49]}  Nd5 {[%clk 0:01:19]} 27. exd6+ {[%clk 0:00:49]}  Qxd6 {[%clk 0:01:18]} 28. Ne4 {[%clk 0:00:49]}  Qf4 {[%clk 0:01:14]} 29. Rhe1 {[%clk 0:00:46]}  b6 {[%clk 0:01:10]} 30. Ned2 {[%clk 0:00:43]}  Qf5 {[%clk 0:01:08]} 31. Qxf5 {[%clk 0:00:36]}  Rxf5 {[%clk 0:01:09]} 32. Ne4 {[%clk 0:00:27]}  Rf4 {[%clk 0:01:08]} 33. c3 {[%clk 0:00:24]}  Ba6 {[%clk 0:01:03]} 34. Bc2 {[%clk 0:00:21]}  Raf8 {[%clk 0:01:00]} 35. Ne5 {[%clk 0:00:21]}  Bxe5 {[%clk 0:00:57]} 36. dxe5 {[%clk 0:00:22]}  c5 {[%clk 0:00:57]} 37. f3 {[%clk 0:00:19]}  g4 {[%clk 0:00:54]} 38. fxg4 {[%clk 0:00:15]}  Rxg4 {[%clk 0:00:55]} 39. Rd2 {[%clk 0:00:16]}  Nf4 {[%clk 0:00:45]} 40. Nf6 {[%clk 0:00:14]}  Rxg2 {[%clk 0:00:44]} 41. Rd7+ {[%clk 0:00:14]}  Kc8 {[%clk 0:00:40]} 42. Red1 {[%clk 0:00:15]}  Nxh5 {[%clk 0:00:20]} 43. Nxh5 {[%clk 0:00:13]}  Be2 {[%clk 0:00:20]} 44. Nf6 {[%clk 0:00:07]}  Bxd1 {[%clk 0:00:19]} 45. Rxd1 {[%clk 0:00:08]}  h5 {[%clk 0:00:15]} 46. Bb3 {[%clk 0:00:08]}  h4 {[%clk 0:00:12]} 47. Bxe6+ {[%clk 0:00:09]}  Kb7 {[%clk 0:00:12]} 48. Bd5+ {[%clk 0:00:09]}  Kc7 {[%clk 0:00:12]} 49. Bxg2 {[%clk 0:00:10]} 1-0


[Site "https://www.chess.com"]

[Event "Titled Tuesday Blitz April 25 Early 2023"]
[White "Bilan, Danila"]
[Black "Sarana, Alexey"]
[WhiteFideId "24161918"]
[BlackFideId "24133795"]
[WhiteElo "2182"]
[BlackElo "2714"]
[Result "0-1"]
[Round "01"]
[TimeControl "180+2"]
[Date "2023.04.25"]
[WhiteClock "0:00:02"]
[BlackClock "0:01:58"]

1. d4 {[%clk 0:02:57]}  Nf6 {[%clk 0:02:59]} 2. Nf3 {[%clk 0:02:55]}  d5 {[%clk 0:02:59]} 3. c4 {[%clk 0:02:55]}  e6 {[%clk 0:02:59]} 4. Nc3 {[%clk 0:02:52]}  Nbd7 {[%clk 0:02:59]} 5. cxd5 {[%clk 0:02:51]}  exd5 {[%clk 0:02:59]} 6. Bg5 {[%clk 0:02:50]}  h6 {[%clk 0:02:59]} 7. Bh4 {[%clk 0:02:50]}  c6 {[%clk 0:02:57]} 8. e3 {[%clk 0:02:49]}  g5 {[%clk 0:02:57]} 9. Bg3 {[%clk 0:02:48]}  Nh5 {[%clk 0:02:58]} 10. Bd3 {[%clk 0:02:42]}  Nxg3 {[%clk 0:02:57]} 11. hxg3 {[%clk 0:02:43]}  Bg7 {[%clk 0:02:56]} 12. Qc2 {[%clk 0:02:40]}  Nb6 {[%clk 0:02:56]} 13. Bf5 {[%clk 0:02:32]}  Bxf5 {[%clk 0:02:53]} 14. Qxf5 {[%clk 0:02:31]}  Qd7 {[%clk 0:02:54]} 15. Qxd7+ {[%clk 0:02:03]}  Kxd7 {[%clk 0:02:55]} 16. g4 {[%clk 0:02:03]}  Nc4 {[%clk 0:02:48]} 17. b3 {[%clk 0:01:52]}  Nd6 {[%clk 0:02:48]} 18. Rc1 {[%clk 0:01:48]}  Rae8 {[%clk 0:02:44]} 19. Ke2 {[%clk 0:01:29]}  f5 {[%clk 0:02:33]} 20. gxf5 {[%clk 0:01:21]}  g4 {[%clk 0:02:34]} 21. Nh4 {[%clk 0:00:54]}  Bxd4 {[%clk 0:02:34]} 22. Kd3 {[%clk 0:00:46]}  Bf6 {[%clk 0:02:33]} 23. g3 {[%clk 0:00:16]}  h5 {[%clk 0:02:31]} 24. Ng6 {[%clk 0:00:16]}  Rh7 {[%clk 0:02:28]} 25. Nf4 {[%clk 0:00:16]}  Reh8 {[%clk 0:02:09]} 26. Ng6 {[%clk 0:00:12]}  Rg8 {[%clk 0:02:08]} 27. Nf4 {[%clk 0:00:12]}  Rg5 {[%clk 0:02:07]} 28. e4 {[%clk 0:00:06]}  Bxc3 {[%clk 0:02:06]} 29. Kxc3 {[%clk 0:00:04]}  Nxe4+ {[%clk 0:02:06]} 30. Kd4 {[%clk 0:00:04]}  Rxf5 {[%clk 0:02:05]} 31. Rhg1 {[%clk 0:00:04]}  Nxf2 {[%clk 0:02:03]} 32. b4 {[%clk 0:00:03]}  Re7 {[%clk 0:02:02]} 33. Kc3 {[%clk 0:00:02]}  h4 {[%clk 0:02:01]} 34. Ng6 {[%clk 0:00:01]}  Re3+ {[%clk 0:02:01]} 35. Kd2 {[%clk 0:00:02]}  Ra3 {[%clk 0:01:58]} 36. Nxh4 {[%clk 0:00:02]}  Ne4+ {[%clk 0:01:58]} 37. Ke2 {[%clk 0:00:02]}  Rf2+ {[%clk 0:01:58]} 38. Ke1 {[%clk 0:00:02]}  Raxa2 {[%clk 0:01:58]} 0-1


[Site "https://www.chess.com"]

[Event "Titled Tuesday Blitz April 25 Early 2023"]
[White "Caruana, Fabiano"]
[Black "Salman, Pavel"]
[WhiteFideId "2020009"]
[BlackFideId "24153753"]
[WhiteElo "2837"]
[BlackElo "2187"]
[Result "1-0"]
[Round "01"]
[TimeControl "180+2"]
[Date "2023.04.25"]
[WhiteClock "0:00:21"]
[BlackClock "0:00:04"]

1. d4 {[%clk 0:02:59]}  Nf6 {[%clk 0:02:58]} 2. c4 {[%clk 0:02:59]}  c5 {[%clk 0:02:59]} 3. d5 {[%clk 0:02:59]}  b5 {[%clk 0:02:59]} 4. cxb5 {[%clk 0:02:59]}  a6 {[%clk 0:02:59]} 5. bxa6 {[%clk 0:02:58]}  g6 {[%clk 0:02:59]} 6. Nc3 {[%clk 0:02:58]}  Bg7 {[%clk 0:03:00]} 7. e4 {[%clk 0:02:58]}  O-O {[%clk 0:03:00]} 8. Nf3 {[%clk 0:02:58]}  Qa5 {[%clk 0:02:59]} 9. Bd2 {[%clk 0:02:58]}  Bxa6 {[%clk 0:02:59]} 10. a4 {[%clk 0:02:49]}  Bxf1 {[%clk 0:02:51]} 11. Kxf1 {[%clk 0:02:50]}  Qa6+ {[%clk 0:02:45]} 12. Qe2 {[%clk 0:02:48]}  e6 {[%clk 0:02:44]} 13. dxe6 {[%clk 0:02:28]}  fxe6 {[%clk 0:02:45]} 14. Nb5 {[%clk 0:02:25]}  Nc6 {[%clk 0:02:26]} 15. g3 {[%clk 0:02:14]}  d5 {[%clk 0:02:20]} 16. exd5 {[%clk 0:01:54]}  exd5 {[%clk 0:02:20]} 17. Kg2 {[%clk 0:01:54]}  Ne4 {[%clk 0:02:03]} 18. Be3 {[%clk 0:01:46]}  Rae8 {[%clk 0:01:46]} 19. Qc2 {[%clk 0:01:38]}  Nb4 {[%clk 0:01:38]} 20. Qb3 {[%clk 0:01:35]}  Qf6 {[%clk 0:01:27]} 21. Bf4 {[%clk 0:01:07]}  Kh8 {[%clk 0:01:14]} 22. Nc7 {[%clk 0:01:03]}  Rd8 {[%clk 0:01:11]} 23. h4 {[%clk 0:00:59]}  Qc6 {[%clk 0:00:59]} 24. Nb5 {[%clk 0:00:50]}  Rxf4 {[%clk 0:00:58]} 25. gxf4 {[%clk 0:00:50]}  Qe6 {[%clk 0:00:55]} 26. Nh2 {[%clk 0:00:42]}  Rf8 {[%clk 0:00:50]} 27. Rae1 {[%clk 0:00:41]}  Qf6 {[%clk 0:00:39]} 28. Qf3 {[%clk 0:00:35]}  Nd2 {[%clk 0:00:18]} 29. Qg3 {[%clk 0:00:29]}  Ne4 {[%clk 0:00:14]} 30. Qf3 {[%clk 0:00:26]}  Nd2 {[%clk 0:00:14]} 31. Qe3 {[%clk 0:00:27]}  Nc4 {[%clk 0:00:12]} 32. Qg3 {[%clk 0:00:28]}  Qxb2 {[%clk 0:00:09]} 33. Ng4 {[%clk 0:00:24]}  Nc2 {[%clk 0:00:07]} 34. Re2 {[%clk 0:00:25]}  N4a3 {[%clk 0:00:04]} 35. Nxa3 {[%clk 0:00:22]}  Nxa3 {[%clk 0:00:04]} 36. Rxb2 {[%clk 0:00:22]}  Nc4 {[%clk 0:00:04]} 37. Re2 {[%clk 0:00:21]} 1-0


[Site "https://www.chess.com"]

[Event "Titled Tuesday Blitz April 25 Early 2023"]
[White "Mortazavi, Ali"]
[Black "So, Wesley"]
[WhiteFideId "401323"]
[BlackFideId "5202213"]
[WhiteElo "2339"]
[BlackElo "2749"]
[Result "0-1"]
[Round "01"]
[TimeControl "180+2"]
[Date "2023.04.25"]
[WhiteClock "0:00:08"]
[BlackClock "0:00:24"]

1. Nf3 {[%clk 0:02:59]}  c5 {[%clk 0:02:58]} 2. e4 {[%clk 0:02:57]}  d6 {[%clk 0:02:57]} 3. d3 {[%clk 0:02:55]}  Nf6 {[%clk 0:02:57]} 4. g3 {[%clk 0:02:55]}  g6 {[%clk 0:02:57]} 5. Bg2 {[%clk 0:02:56]}  Bg7 {[%clk 0:02:57]} 6. O-O {[%clk 0:02:56]}  O-O {[%clk 0:02:58]} 7. e5 {[%clk 0:02:57]}  dxe5 {[%clk 0:02:53]} 8. Nxe5 {[%clk 0:02:57]}  Nfd7 {[%clk 0:02:49]} 9. Nc4 {[%clk 0:02:57]}  Nc6 {[%clk 0:02:46]} 10. Bxc6 {[%clk 0:02:54]}  bxc6 {[%clk 0:02:47]} 11. Re1 {[%clk 0:02:54]}  Re8 {[%clk 0:02:36]} 12. Qf3 {[%clk 0:02:45]}  Nb6 {[%clk 0:02:14]} 13. Nc3 {[%clk 0:02:37]}  Nd5 {[%clk 0:01:58]} 14. Ne4 {[%clk 0:02:28]}  Nb4 {[%clk 0:01:54]} 15. Qe2 {[%clk 0:02:21]}  Qd5 {[%clk 0:01:39]} 16. a3 {[%clk 0:02:14]}  Na6 {[%clk 0:01:39]} 17. Bf4 {[%clk 0:02:01]}  Bf5 {[%clk 0:01:35]} 18. Ned6 {[%clk 0:01:42]}  Bh3 {[%clk 0:01:04]} 19. f3 {[%clk 0:01:20]}  Bd4+ {[%clk 0:01:00]} 20. Kh1 {[%clk 0:01:15]}  exd6 {[%clk 0:00:58]} 21. Qxe8+ {[%clk 0:01:10]}  Rxe8 {[%clk 0:00:59]} 22. Rxe8+ {[%clk 0:01:10]}  Kg7 {[%clk 0:00:59]} 23. Re4 {[%clk 0:01:01]}  Bf5 {[%clk 0:00:45]} 24. c3 {[%clk 0:01:01]}  Bf6 {[%clk 0:00:40]} 25. Nxd6 {[%clk 0:01:00]}  Bxe4 {[%clk 0:00:38]} 26. Ne8+ {[%clk 0:00:51]}  Kh8 {[%clk 0:00:36]} 27. Nxf6 {[%clk 0:00:49]}  Bxf3+ {[%clk 0:00:35]} 28. Kg1 {[%clk 0:00:50]}  Qe6 {[%clk 0:00:33]} 29. Rf1 {[%clk 0:00:28]}  Qxf6 {[%clk 0:00:32]} 30. Rxf3 {[%clk 0:00:28]}  Qd8 {[%clk 0:00:28]} 31. Be5+ {[%clk 0:00:26]}  Kg8 {[%clk 0:00:27]} 32. Bf6 {[%clk 0:00:25]}  Qe8 {[%clk 0:00:25]} 33. Kf2 {[%clk 0:00:25]}  Nc7 {[%clk 0:00:25]} 34. Re3 {[%clk 0:00:21]}  Qb8 {[%clk 0:00:24]} 35. b4 {[%clk 0:00:19]}  cxb4 {[%clk 0:00:25]} 36. axb4 {[%clk 0:00:20]}  Nd5 {[%clk 0:00:25]} 37. Be5 {[%clk 0:00:18]}  Qc8 {[%clk 0:00:25]} 38. Re4 {[%clk 0:00:18]}  Qf5+ {[%clk 0:00:25]} 39. Kg2 {[%clk 0:00:18]}  h5 {[%clk 0:00:25]} 40. Bd4 {[%clk 0:00:16]}  f6 {[%clk 0:00:25]} 41. h3 {[%clk 0:00:13]}  g5 {[%clk 0:00:25]} 42. g4 {[%clk 0:00:12]}  hxg4 {[%clk 0:00:26]} 43. hxg4 {[%clk 0:00:13]}  Qd7 {[%clk 0:00:23]} 44. Kg3 {[%clk 0:00:09]}  Kf7 {[%clk 0:00:23]} 45. Re1 {[%clk 0:00:08]}  Qd6+ {[%clk 0:00:23]} 46. Kg2 {[%clk 0:00:08]}  Qf4 {[%clk 0:00:23]} 47. Re4 {[%clk 0:00:07]}  Qd2+ {[%clk 0:00:23]} 48. Kg3 {[%clk 0:00:08]}  Qxd3+ {[%clk 0:00:24]} 0-1


[Site "https://www.chess.com"]

[Event "Titled Tuesday Blitz April 25 Early 2023"]
[White "Firouzja, Alireza"]
[Black "Principe, Gerson"]
[WhiteFideId "12573981"]
[BlackFideId "3804550"]
[WhiteElo "2904"]
[BlackElo "2229"]
[Result "1-0"]
[Round "01"]
[TimeControl "180+2"]
[Date "2023.04.25"]
[WhiteClock "0:01:26"]
[BlackClock "0:00:10"]

1. e4 {[%clk 0:02:58]}  c5 {[%clk 0:02:58]} 2. Nf3 {[%clk 0:02:58]}  e6 {[%clk 0:02:58]} 3. Nc3 {[%clk 0:02:51]}  Nc6 {[%clk 0:02:49]} 4. Bb5 {[%clk 0:02:51]}  Nd4 {[%clk 0:02:26]} 5. O-O {[%clk 0:02:42]}  Nxb5 {[%clk 0:02:18]} 6. Nxb5 {[%clk 0:02:43]}  a6 {[%clk 0:02:19]} 7. Nc3 {[%clk 0:02:43]}  d6 {[%clk 0:02:00]} 8. Re1 {[%clk 0:02:32]}  Nf6 {[%clk 0:01:58]} 9. e5 {[%clk 0:02:32]}  dxe5 {[%clk 0:01:58]} 10. Nxe5 {[%clk 0:02:33]}  Be7 {[%clk 0:01:57]} 11. Qf3 {[%clk 0:02:32]}  O-O {[%clk 0:01:56]} 12. d3 {[%clk 0:02:31]}  Nd7 {[%clk 0:01:51]} 13. Nc4 {[%clk 0:02:30]}  Ra7 {[%clk 0:01:42]} 14. a4 {[%clk 0:02:29]}  b6 {[%clk 0:01:42]} 15. Qg3 {[%clk 0:02:26]}  Re8 {[%clk 0:01:36]} 16. Bh6 {[%clk 0:02:23]}  g6 {[%clk 0:01:24]} 17. Ne4 {[%clk 0:02:17]}  Nf6 {[%clk 0:01:07]} 18. Qe5 {[%clk 0:02:16]}  Nh5 {[%clk 0:01:02]} 19. Qc3 {[%clk 0:01:53]}  Bf8 {[%clk 0:00:58]} 20. Bxf8 {[%clk 0:01:49]}  Rxf8 {[%clk 0:00:57]} 21. a5 {[%clk 0:01:45]}  b5 {[%clk 0:00:52]} 22. Ne3 {[%clk 0:01:45]}  Qd4 {[%clk 0:00:44]} 23. Qxc5 {[%clk 0:01:42]}  Qxc5 {[%clk 0:00:44]} 24. Nxc5 {[%clk 0:01:42]}  Rc7 {[%clk 0:00:44]} 25. d4 {[%clk 0:01:41]}  Rd8 {[%clk 0:00:44]} 26. c3 {[%clk 0:01:41]}  Nf6 {[%clk 0:00:38]} 27. Nc2 {[%clk 0:01:40]}  Rd6 {[%clk 0:00:35]} 28. Nb4 {[%clk 0:01:39]}  Kg7 {[%clk 0:00:35]} 29. f4 {[%clk 0:01:39]}  h5 {[%clk 0:00:34]} 30. Re3 {[%clk 0:01:36]}  Ng4 {[%clk 0:00:33]} 31. Re2 {[%clk 0:01:34]}  Nf6 {[%clk 0:00:33]} 32. Rae1 {[%clk 0:01:34]}  h4 {[%clk 0:00:26]} 33. Re3 {[%clk 0:01:32]}  Nh5 {[%clk 0:00:25]} 34. Nbd3 {[%clk 0:01:26]}  Rd5 {[%clk 0:00:15]} 35. Re5 {[%clk 0:01:26]}  Rd6 {[%clk 0:00:15]} 36. R1e3 {[%clk 0:01:24]}  Nf6 {[%clk 0:00:15]} 37. Rh3 {[%clk 0:01:24]}  Ng4 {[%clk 0:00:15]} 38. Re1 {[%clk 0:01:24]}  Nh6 {[%clk 0:00:15]} 39. Rxh4 {[%clk 0:01:25]}  Nf5 {[%clk 0:00:16]} 40. Rh3 {[%clk 0:01:25]}  Rd5 {[%clk 0:00:11]} 41. g4 {[%clk 0:01:25]}  Nh6 {[%clk 0:00:10]} 42. g5 {[%clk 0:01:26]}  Nf5 {[%clk 0:00:11]} 43. Ne5 {[%clk 0:01:26]}  Rd6 {[%clk 0:00:10]} 44. Ne4 {[%clk 0:01:26]} 1-0


[Site "https://www.chess.com"]

[Event "Titled Tuesday Blitz April 25 Early 2023"]
[White "Martinez Alcantara, Jose Eduardo"]
[Black "Berthier, Hugo"]
[WhiteFideId "3805662"]
[BlackFideId "655864"]
[WhiteElo "2711"]
[BlackElo "2193"]
[Result "1-0"]
[Round "01"]
[TimeControl "180+2"]
[Date "2023.04.25"]
[WhiteClock "0:00:48"]
[BlackClock "0:00:25"]

1. e4 {[%clk 0:02:59]}  e5 {[%clk 0:02:59]} 2. Nf3 {[%clk 0:02:58]}  Nc6 {[%clk 0:03:00]} 3. Bb5 {[%clk 0:02:58]}  Nf6 {[%clk 0:03:00]} 4. d3 {[%clk 0:02:54]}  Bc5 {[%clk 0:03:00]} 5. O-O {[%clk 0:02:54]}  d6 {[%clk 0:02:58]} 6. c3 {[%clk 0:02:50]}  O-O {[%clk 0:02:57]} 7. Bg5 {[%clk 0:02:50]}  Ne7 {[%clk 0:02:48]} 8. d4 {[%clk 0:02:48]}  Bb6 {[%clk 0:02:41]} 9. Bd3 {[%clk 0:02:30]}  Ng6 {[%clk 0:02:35]} 10. h3 {[%clk 0:02:30]}  h6 {[%clk 0:02:35]} 11. Be3 {[%clk 0:02:23]}  Re8 {[%clk 0:02:31]} 12. Nbd2 {[%clk 0:02:22]}  Nf4 {[%clk 0:02:07]} 13. Bxf4 {[%clk 0:02:15]}  exf4 {[%clk 0:02:06]} 14. Re1 {[%clk 0:02:14]}  a6 {[%clk 0:01:58]} 15. Qc2 {[%clk 0:02:12]}  Nh5 {[%clk 0:01:56]} 16. e5 {[%clk 0:02:06]}  d5 {[%clk 0:01:40]} 17. Rad1 {[%clk 0:01:44]}  Be6 {[%clk 0:01:31]} 18. c4 {[%clk 0:01:35]}  c6 {[%clk 0:01:31]} 19. b4 {[%clk 0:01:33]}  g5 {[%clk 0:01:28]} 20. c5 {[%clk 0:01:30]}  Bc7 {[%clk 0:01:28]} 21. Nh2 {[%clk 0:01:29]}  Qd7 {[%clk 0:01:24]} 22. Ndf3 {[%clk 0:01:28]}  Ng7 {[%clk 0:01:11]} 23. a4 {[%clk 0:01:27]}  Bf5 {[%clk 0:01:07]} 24. Rb1 {[%clk 0:01:26]}  Bxd3 {[%clk 0:01:08]} 25. Qxd3 {[%clk 0:01:27]}  Qf5 {[%clk 0:01:07]} 26. Qc3 {[%clk 0:01:23]}  Ne6 {[%clk 0:01:06]} 27. Ng4 {[%clk 0:01:23]}  Kg7 {[%clk 0:01:00]} 28. Nf6 {[%clk 0:01:23]}  Reb8 {[%clk 0:00:55]} 29. Qb3 {[%clk 0:01:12]}  Bd8 {[%clk 0:00:55]} 30. Ne8+ {[%clk 0:01:00]}  Kh7 {[%clk 0:00:49]} 31. Nd6 {[%clk 0:01:01]}  Qg6 {[%clk 0:00:48]} 32. Rbd1 {[%clk 0:00:57]}  Be7 {[%clk 0:00:42]} 33. Nh2 {[%clk 0:00:54]}  h5 {[%clk 0:00:42]} 34. g4 {[%clk 0:00:51]}  h4 {[%clk 0:00:38]} 35. Nf3 {[%clk 0:00:51]}  Kg8 {[%clk 0:00:34]} 36. Nf5 {[%clk 0:00:49]}  Bd8 {[%clk 0:00:33]} 37. Re2 {[%clk 0:00:48]}  Rc8 {[%clk 0:00:28]} 38. Rb2 {[%clk 0:00:48]}  Rcb8 {[%clk 0:00:28]} 39. Qd3 {[%clk 0:00:49]}  Kh7 {[%clk 0:00:25]} 40. Rdb1 {[%clk 0:00:49]}  Kg8 {[%clk 0:00:24]} 41. b5 {[%clk 0:00:49]}  axb5 {[%clk 0:00:25]} 42. axb5 {[%clk 0:00:50]}  Rc8 {[%clk 0:00:21]} 43. bxc6 {[%clk 0:00:48]}  bxc6 {[%clk 0:00:22]} 44. Rb7 {[%clk 0:00:48]}  Rc7 {[%clk 0:00:23]} 45. Rxc7 {[%clk 0:00:48]}  Bxc7 {[%clk 0:00:24]} 46. Ne7+ {[%clk 0:00:47]}  Kg7 {[%clk 0:00:24]} 47. Nxg6 {[%clk 0:00:48]}  fxg6 {[%clk 0:00:25]} 48. Rb7 {[%clk 0:00:48]} 1-0


[Site "https://www.chess.com"]

[Event "Titled Tuesday Blitz April 25 Early 2023"]
[White "Duda, Jan-Krzysztof"]
[Black "Ordekalog"]
[WhiteFideId "1170546"]
[WhiteElo "2790"]
[BlackElo "2513"]
[Result "1-0"]
[Round "01"]
[TimeControl "180+2"]
[Date "2023.04.25"]
[WhiteClock "0:01:08"]
[BlackClock "0:00:42"]

1. d4 {[%clk 0:02:59]}  d5 {[%clk 0:02:59]} 2. c4 {[%clk 0:03:00]}  e6 {[%clk 0:02:58]} 3. g3 {[%clk 0:02:59]}  Nf6 {[%clk 0:02:57]} 4. Bg2 {[%clk 0:03:00]}  c5 {[%clk 0:02:56]} 5. cxd5 {[%clk 0:02:59]}  exd5 {[%clk 0:02:56]} 6. Nf3 {[%clk 0:02:59]}  Nc6 {[%clk 0:02:55]} 7. O-O {[%clk 0:02:58]}  Be7 {[%clk 0:02:55]} 8. Nc3 {[%clk 0:02:57]}  O-O {[%clk 0:02:54]} 9. dxc5 {[%clk 0:02:55]}  Bxc5 {[%clk 0:02:53]} 10. Bg5 {[%clk 0:02:55]}  d4 {[%clk 0:02:52]} 11. Ne4 {[%clk 0:02:51]}  Be7 {[%clk 0:02:51]} 12. Bxf6 {[%clk 0:02:51]}  Bxf6 {[%clk 0:02:51]} 13. Rc1 {[%clk 0:02:52]}  Re8 {[%clk 0:02:37]} 14. Ne1 {[%clk 0:02:47]}  Bf5 {[%clk 0:02:31]} 15. Nc5 {[%clk 0:02:46]}  Bc8 {[%clk 0:01:59]} 16. Ned3 {[%clk 0:02:42]}  Qb6 {[%clk 0:01:58]} 17. Rc4 {[%clk 0:02:32]}  Na5 {[%clk 0:01:53]} 18. Rb4 {[%clk 0:02:28]}  Qd6 {[%clk 0:01:50]} 19. Qa4 {[%clk 0:02:17]}  Nc6 {[%clk 0:01:48]} 20. Rxb7 {[%clk 0:02:12]}  Bxb7 {[%clk 0:01:37]} 21. Nxb7 {[%clk 0:02:13]}  Qc7 {[%clk 0:01:34]} 22. Qxc6 {[%clk 0:02:12]}  Qxc6 {[%clk 0:01:33]} 23. Bxc6 {[%clk 0:02:13]}  Rxe2 {[%clk 0:01:34]} 24. Rd1 {[%clk 0:02:12]}  Rb8 {[%clk 0:01:32]} 25. Nbc5 {[%clk 0:02:05]}  Be7 {[%clk 0:01:26]} 26. Bf3 {[%clk 0:02:01]}  Rc2 {[%clk 0:01:25]} 27. Nb3 {[%clk 0:02:01]}  Bf6 {[%clk 0:01:24]} 28. h4 {[%clk 0:01:57]}  g6 {[%clk 0:01:22]} 29. Nbc5 {[%clk 0:01:51]}  Kg7 {[%clk 0:01:19]} 30. Nd7 {[%clk 0:01:47]}  Rd8 {[%clk 0:01:18]} 31. Nxf6 {[%clk 0:01:46]}  Kxf6 {[%clk 0:01:19]} 32. Kf1 {[%clk 0:01:45]}  Rd6 {[%clk 0:01:18]} 33. Be2 {[%clk 0:01:25]}  h5 {[%clk 0:01:14]} 34. Rc1 {[%clk 0:01:24]}  Rxc1+ {[%clk 0:01:13]} 35. Nxc1 {[%clk 0:01:25]}  Rc6 {[%clk 0:01:11]} 36. Nd3 {[%clk 0:01:24]}  Rc2 {[%clk 0:01:10]} 37. Ke1 {[%clk 0:01:23]}  a5 {[%clk 0:01:10]} 38. Bd1 {[%clk 0:01:23]}  Rc7 {[%clk 0:01:09]} 39. Kd2 {[%clk 0:01:23]}  Kf5 {[%clk 0:01:09]} 40. a3 {[%clk 0:01:21]}  Ke4 {[%clk 0:01:07]} 41. Ne1 {[%clk 0:01:14]}  f6 {[%clk 0:01:06]} 42. Bc2+ {[%clk 0:01:14]}  Ke5 {[%clk 0:00:58]} 43. Bxg6 {[%clk 0:01:14]}  a4 {[%clk 0:00:52]} 44. Nd3+ {[%clk 0:01:15]}  Kd6 {[%clk 0:00:52]} 45. Bxh5 {[%clk 0:01:15]}  Rb7 {[%clk 0:00:51]} 46. Bd1 {[%clk 0:01:16]}  Ra7 {[%clk 0:00:49]} 47. g4 {[%clk 0:01:16]}  Kd5 {[%clk 0:00:48]} 48. h5 {[%clk 0:01:14]}  Ke4 {[%clk 0:00:48]} 49. f3+ {[%clk 0:01:13]}  Kd5 {[%clk 0:00:48]} 50. Bc2 {[%clk 0:01:11]}  Kd6 {[%clk 0:00:42]} 51. Nb4 {[%clk 0:01:08]} 1-0


[Site "https://www.chess.com"]

[Event "Titled Tuesday Blitz April 25 Early 2023"]
[White "Shvedova, Alexandra"]
[Black "Le, Tuan Minh"]
[WhiteFideId "54154782"]
[BlackFideId "12401153"]
[WhiteElo "2057"]
[BlackElo "2566"]
[Result "0-1"]
[Round "01"]
[TimeControl "180+2"]
[Date "2023.04.25"]
[WhiteClock "0:00:33"]
[BlackClock "0:01:45"]

1. e4 {[%clk 0:02:59]}  c5 {[%clk 0:02:52]} 2. Ne2 {[%clk 0:02:58]}  Nf6 {[%clk 0:02:51]} 3. Nbc3 {[%clk 0:02:57]}  Nc6 {[%clk 0:02:47]} 4. d4 {[%clk 0:02:57]}  cxd4 {[%clk 0:02:48]} 5. Nxd4 {[%clk 0:02:57]}  g6 {[%clk 0:02:49]} 6. Be3 {[%clk 0:02:54]}  Bg7 {[%clk 0:02:49]} 7. Bc4 {[%clk 0:02:47]}  O-O {[%clk 0:02:48]} 8. Bb3 {[%clk 0:02:44]}  Qa5 {[%clk 0:02:47]} 9. f3 {[%clk 0:02:35]}  e6 {[%clk 0:02:32]} 10. Nb5 {[%clk 0:02:10]}  d5 {[%clk 0:02:29]} 11. exd5 {[%clk 0:02:02]}  Nxd5 {[%clk 0:02:29]} 12. Bd2 {[%clk 0:01:42]}  Nxc3 {[%clk 0:02:23]} 13. Nxc3 {[%clk 0:01:42]}  Qc5 {[%clk 0:02:13]} 14. Qe2 {[%clk 0:01:38]}  Nd4 {[%clk 0:02:14]} 15. Qe3 {[%clk 0:01:23]}  a5 {[%clk 0:02:01]} 16. a4 {[%clk 0:01:01]}  Bd7 {[%clk 0:01:59]} 17. O-O-O {[%clk 0:00:56]}  b5 {[%clk 0:01:57]} 18. Kb1 {[%clk 0:00:50]}  bxa4 {[%clk 0:01:54]} 19. Nxa4 {[%clk 0:00:48]}  Bxa4 {[%clk 0:01:54]} 20. Bxa4 {[%clk 0:00:48]}  Rab8 {[%clk 0:01:48]} 21. Bc3 {[%clk 0:00:46]}  Rfd8 {[%clk 0:01:48]} 22. Rd3 {[%clk 0:00:41]}  Qc4 {[%clk 0:01:48]} 23. b3 {[%clk 0:00:33]}  Qxa4 {[%clk 0:01:45]} 0-1


[Site "https://www.chess.com"]